Cogmind - Beta 9.4 @@@ ROGUE MODE // 2020.03.11 @ 00:29:44 // Winter2019/RPGLIKE Player: PyroDawn Result: Destroyed by H-55 Commando with Gauss Rifle Performance ------------- Evolutions (3) 1500 Regions Visited (13) 2600 Robots Destroyed (547) 2735 Value Destroyed (21286) 21286 Prototype IDs (55) 1100 Alien Tech Used (0) 0 Bonus (12798) 12798 TOTAL SCORE: 42019 Bonus ------- Triggered High Security 1000 High Alert Combat Kills 10800 Follower Combat Kills 650 Entered Garrisons 400 Used RIF Installer 1000 Aligned with FarCom 300 Friendly Fire -1352 Cogmind --------- Core Integrity 0/600 Matter 272/300 Energy 356/370 System Corruption 9% Temperature Cool (4) Movement Flying (26) Location -7/Factory Parts ------- > --- POWER (1) -------- Makeshift Power Source > --- PROPULSION (4) --- Improved Cesium-ion Thruster Improved Cesium-ion Thruster Improved Cesium-ion Thruster Cooled VTOL Module > --- UTILITY (7) ------ Advanced Signal Interpreter Core Analyzer Improved Armor Integrity Analyzer Advanced Weapon Cycler System Purifier Advanced Recalibrator > --- WEAPON (3) ------- Latent Energy Streamer 8R-AWN's Boregun 8R-AWN's Boregun > --- INVENTORY (4) ---- Damper Plating AS-neutralizer No. 17b Peak State ------------ > --- POWER ------------ Heavy Deuterium Engine > --- PROPULSION ------- Improved Cesium-ion Thruster Improved Cesium-ion Thruster Improved Cesium-ion Thruster Cooled VTOL Module > --- UTILITY ---------- Advanced Signal Interpreter Core Analyzer Improved Armor Integrity Analyzer Advanced Weapon Cycler Phase Shifter System Purifier Advanced Recalibrator > --- WEAPON ----------- Latent Energy Streamer 8R-AWN's Boregun 8R-AWN's Boregun > --- INVENTORY -------- Damper Plating AS-neutralizer No. 17b [Rating: 99] Favorites ----------- Power Makeshift Power Source Engine Makeshift Power Source Power Core Light Nuclear Core Propulsion Improved Flight Unit Leg Advanced Myomer Leg Wheel Wheel Hover Unit Aerolev Unit Flight Unit Improved Flight Unit Utility Advanced Weapon Cycler Device Advanced Weapon Cycler Storage Small Battery Processor Improved Armor Integrity Analyzer Hackware System Shield Protection Damper Plating Weapon 8R-AWN's Boregun Energy Gun Medium Laser Energy Cannon Latent Energy Streamer Ballistic Gun 8R-AWN's Boregun Ballistic Cannon Hypervelocity Gauss Cannon Launcher Grenade Launcher Impact Weapon Powered Hammer Slashing Weapon Katana Special Melee Weapon Improved Datajack Build | -11 -10 -10 -9 -9 -9 -8 -8 -8 -8 -8 -7 -7 -7 ------- Run | Scr Mat Min Mat Min Exi Min Mat Gar Mat Gar Fac Was Fac Slots Evolved 11 | 3 . . 4 . . 1 1 . . . 1 . 1 Power . | . . . . . . . . . . . . . . Propulsion 3 | 1 . . 2 . . . . . . . . . . Utility 6 | 1 . . 1 . . 1 1 . . . 1 . 1 Weapon 2 | 1 . . 1 . . . . . . . . . . Parts Attached 133 | 3 16 . 19 2 25 1 21 3 4 . 28 8 3 Power 17 | 1 6 . 2 . 2 . 2 . . . 2 . 2 Engine 10 | 1 2 . . . 2 . 2 . . . 1 . 2 Core 7 | . 4 . 2 . . . . . . . 1 . . Reactor . | . . . . . . . . . . . . . . Propulsion 31 | . 3 . 7 . 4 . 7 . . . 10 . . Treads . | . . . . . . . . . . . . . . Leg 3 | . . . . . 2 . 1 . . . . . . Wheel 1 | . . . . . . . 1 . . . . . . Hover 1 | . . . . . . . . . . . 1 . . Flight 26 | . 3 . 7 . 2 . 5 . . . 9 . . Utility 59 | . 3 . 5 2 14 1 10 3 4 . 12 4 1 Device 38 | . 1 . 2 1 8 1 7 3 3 . 8 3 1 Storage 1 | . . . . . . . . . 1 . . . . Processor 13 | . 2 . 2 1 3 . 1 . . . 4 . . Hackware 5 | . . . 1 . 2 . 2 . . . . . . Protection 2 | . . . . . 1 . . . . . . 1 . Artifact . | . . . . . . . . . . . . . . Weapon 26 | 2 4 . 5 . 5 . 2 . . . 4 4 . Energy Gun 1 | 1 . . . . . . . . . . . . . Energy Cannon 9 | . . . . . 2 . 1 . . . 3 3 . Ballistic Gun 6 | 1 1 . 1 . 3 . . . . . . . . Ballistic Cannon 1 | . . . . . . . . . . . . 1 . Launcher 5 | . 3 . 2 . . . . . . . . . . Special Weapon . | . . . . . . . . . . . . . . Impact Weapon 1 | . . . . . . . . . . . 1 . . Slashing Weapon 2 | . . . 2 . . . . . . . . . . Piercing Weapon . | . . . . . . . . . . . . . . Special Melee Weapon 1 | . . . . . . . 1 . . . . . . Unidentified Prototypes 13 | . . . . . 11 . . . . . 1 . 1 Parts Lost 2 | . . . . . 1 . . . . . . . 1 Power 1 | . . . . . 1 . . . . . . . . Propulsion . | . . . . . . . . . . . . . . Utility 1 | . . . . . . . . . . . . . 1 Weapon . | . . . . . . . . . . . . . . Highest Loss Streak 1 | . . . . . 1 . . . . . . . 1 Average Slot Usage (%) 95 | . 64 100 99 100 98 92 99 99 100 100 99 99 100 Engine 5 | . 7 . . . 6 8 6 7 7 7 7 7 6 Core 2 | . 6 14 11 9 2 . . . . . . . . Flight 28 | . 14 28 27 36 35 33 30 30 30 30 28 28 26 Device 11 | . 2 . . 5 14 16 10 11 15 15 11 17 24 Processor 14 | . 6 28 24 12 9 8 15 10 7 7 18 21 20 Hackware 6 | . . . 3 9 2 . 9 15 15 15 10 2 . Energy Cannon 4 | . . . . . 2 8 6 7 7 7 6 7 6 Ballistic Gun 13 | . 7 14 11 9 15 16 15 15 15 15 14 14 13 Launcher 3 | . 13 14 11 9 . . . . . . . . . Slashing Weapon 2 | . . . 6 9 7 . . . . . . . . Naked Turns . | . . . . . . . . . . . . . . Heaviest Build 71 | 7 11 10 14 16 31 31 31 31 31 31 31 71 33 Greatest Support 41 | 8 13 18 34 34 34 34 34 34 34 34 39 39 41 Greatest Overweight (x) 1 | . 1 . . . 1 . . . . . . 1 . Average Overweight (x) . | . . . . . . . . . . . . . . Largest Inventory Capacity 4 | 1 1 1 2 2 2 2 3 3 3 3 4 4 4 Average Capacity 2 | . 1 1 1 2 2 2 2 3 3 3 3 4 4 Most Carried 4 | . 1 1 2 2 2 2 3 3 3 3 4 4 4 Average Carried 2 | . . . 1 2 1 2 2 2 2 3 3 3 4 Final Capacity 4 | 1 1 1 2 2 2 2 3 3 3 3 4 4 4 Final Carried 4 | . 1 1 2 2 2 2 3 3 3 3 4 4 4 Class Distribution -------------------- 48% | Hacker-Sprinter 21% | Scavenger-Sprinter 16% | Mutant 11% | Scavenger-Mutant Dominant Class ---------------- Mutant | -10/Materials Mutant | -10/Mines Mutant | -9/Materials Hacker-Sprinter | -9/Mines Scavenger-Mutant | -9/Exiles Scavenger-Sprinter | -8/Mines Hacker-Sprinter | -8/Materials Hacker-Sprinter | -8/Garrison Hacker-Sprinter | -8/Materials Hacker-Sprinter | -8/Garrison Hacker-Sprinter | -7/Factory Scavenger-Sprinter | -7/Waste Scavenger-Sprinter | -7/Factory Resources | -11 -10 -10 -9 -9 -9 -8 -8 -8 -8 -8 -7 -7 -7 ----------- Run | Scr Mat Min Mat Min Exi Min Mat Gar Mat Gar Fac Was Fac Matter Collected 12671 | 230 229 125 477 72 910 334 1650 690 1072 492 3280 248 2862 Remotely . | . . . . . . . . . . . . . . Salvage Created 25489 | . 433 25 1082 85 762 723 2683 1524 1945 719 6990 2392 6126 Parts 1521 | . 27 9 84 6 80 48 190 56 147 55 392 43 384 Haulers Intercepted 22 | . 1 . 6 . . . 5 . 5 . 4 . 1 Recyclers Shooed . | . . . . . . . . . . . . . . Parts Field Recycled . | . . . . . . . . . . . . . . Retrieved Matter . | . . . . . . . . . . . . . . Parts Self-Destructed . | . . . . . . . . . . . . . . Prevented . | . . . . . . . . . . . . . . Kills | -11 -10 -10 -9 -9 -9 -8 -8 -8 -8 -8 -7 -7 -7 ------- Run | Scr Mat Min Mat Min Exi Min Mat Gar Mat Gar Fac Was Fac Combat Hostiles Destroyed 410 | . 11 8 26 7 4 18 46 17 27 22 112 6 106 Melee 14 | . . . 11 2 1 . . . . . . . . Guns 353 | . 7 2 6 1 . 15 46 17 27 22 106 6 98 AOE 39 | . 4 6 9 4 3 3 . . . . 5 . 5 Classes Destroyed 21 | . 7 . 4 1 2 1 3 . . . 2 1 . Worker 16 | . 2 . . 1 . . 2 . 1 . 6 . 4 Builder 12 | . . . . . . . 2 . 6 . 3 . 1 Tunneler 4 | . . . . . . . 2 . 1 . 1 . . Hauler 22 | . 1 . 6 . . . 5 . 5 . 4 . 1 Recycler 8 | . 1 . . . . 1 3 . 2 . 1 . . Carrier 7 | . . . . . . . 1 . . . 2 . 4 Mechanic 16 | . 1 . . . . . . . . . 7 . 8 Operator 12 | . . . 1 . . . 2 . 4 . 4 . 1 Turret 1 | . . . . . 1 . . . . . . . . Watcher 24 | . 2 . 3 . . . 5 . 5 . 5 . 4 Swarmer 68 | . 6 6 6 . . 8 12 2 3 4 19 . 2 Grunt 180 | . 5 2 9 1 . 8 22 14 8 16 52 . 43 Brawler 17 | . . . 2 1 . 1 1 . 2 . 5 . 5 Duelist 16 | . . . 1 . . . 1 . 1 1 7 . 5 Protector 15 | . . . . . . . . . . . 4 . 11 Sentry 52 | . . . 8 . . . 10 . 10 1 12 . 11 Hunter 32 | . . . . . . 1 . 1 3 . 5 . 22 Programmer 15 | . . . . . . . . . . . 8 . 7 Compactor 6 | . . . . . . . . . . . . 6 . Zionite 8 | . . . . . 8 . . . . . . . . Assembled 12 | . . . . 5 7 . . . . . . . . Best Kill Streak 29 | . 6 6 11 3 9 6 21 8 18 9 29 6 27 Combat Bots Only 26 | . 4 6 9 2 3 6 15 8 8 9 23 6 26 Max Kills in Single Turn 4 | . 2 2 3 3 4 2 3 2 3 1 4 2 4 Gunslinging 1 | . . . . . . 1 1 . . . . 1 1 Exploded 3 | . 2 2 3 2 3 2 . . . . 2 . 2 Melee 1 | . . . 1 1 1 . . . . . . . . Uniques/NPCs Destroyed 2 | . . . . . 2 . . . . . . . . 8R-AWN (-9/Exiles) EX-HEX (-9/Exiles) EX-BIN (-9/Exiles) EX-DEC (-9/Exiles) Combat | -11 -10 -10 -9 -9 -9 -8 -8 -8 -8 -8 -7 -7 -7 -------- Run | Scr Mat Min Mat Min Exi Min Mat Gar Mat Gar Fac Was Fac Damage Taken 5665 | . 358 125 474 74 777 124 560 198 171 336 787 . 1681 Core 4628 | . 298 101 391 66 642 103 457 163 140 266 640 . 1361 Absorbed by Shields . | . . . . . . . . . . . . . . Redirected to Core 3514 | . 188 80 279 25 466 67 338 117 108 228 516 . 1102 Core Remaining (%) 88 | 100 . 72 . . . 81 . . . 100 . . . Volleys Fired 1075 | . 55 16 69 8 80 25 130 57 86 46 248 14 241 Largest 3 | . 2 2 1 1 2 2 2 2 2 2 3 2 2 Hottest 120 | . 80 50 30 30 60 60 60 60 60 60 120 60 60 Shots Fired 1930 | . 60 17 69 8 116 49 240 110 172 86 497 28 478 Gun 1895 | . 54 11 62 4 108 49 240 110 172 86 496 28 475 Cannon 12 | . . . . . 8 . . . . . 1 . 3 Launcher 23 | . 6 6 7 4 . . . . . . . . . Special . | . . . . . . . . . . . . . . Kinetic 1865 | . 24 11 62 4 108 49 240 110 172 86 496 28 475 Thermal 30 | . 30 . . . . . . . . . . . . Explosive 23 | . 6 6 7 4 . . . . . . . . . Electromagnetic 12 | . . . . . 8 . . . . . 1 . 3 Robot Hit Streak 60 | . 8 12 19 20 9 6 36 34 40 60 45 23 49 Robot Miss Streak 7 | . 3 2 4 1 7 2 4 1 2 2 1 1 2 Penetration Max 2 | . . . . . 1 1 2 1 2 1 2 . 2 Secondary Targets 24 | . . . . . . 2 6 . . 4 1 1 10 Max Gunslinging Chain 1 | . . . . . . 1 1 . . 1 1 1 1 Shots Hit Robots 1401 | . 39 13 92 13 74 29 174 77 123 60 340 23 344 Core Hits 894 | . 27 11 47 15 37 23 97 33 65 32 254 10 243 Critical Hits 769 | . . . 1 . 32 18 97 39 76 35 232 9 230 Critical Kills 323 | . . . . . 10 13 45 16 32 18 96 6 87 Critical Parts Destroyed 409 | . . . 1 . 12 5 52 23 44 17 125 . 130 Melee Attacks 73 | . . . 46 10 17 . . . . . . . . Impact . | . . . . . . . . . . . . . . Slashing 73 | . . . 46 10 17 . . . . . . . . Piercing . | . . . . . . . . . . . . . . Sneak Attacks 9 | . . . 8 1 . . . . . . . . . Combat Hostiles 3 | . . . 2 1 . . . . . . . . . Follow-up Attacks . | . . . . . . . . . . . . . . Damage Inflicted 37523 | . 969 440 3338 596 2353 807 3590 1145 2656 1229 10261 448 9691 Guns 28117 | . 497 136 661 30 1057 598 3590 1145 2656 1229 8404 448 7666 Cannons 18 | . . . . . 4 . . . . . 6 . 8 Explosions 6596 | . 472 304 756 192 795 209 . . . . 1851 . 2017 Melee 2792 | . . . 1921 374 497 . . . . . . . . Ramming . | . . . . . . . . . . . . . . Kinetic 27820 | . 200 136 661 30 1057 598 3590 1145 2656 1229 8404 448 7666 Thermal 2186 | . 297 . 81 . . 209 . . . . 891 . 708 Explosive 2142 | . 472 304 675 192 . . . . . . 499 . . Electromagnetic 2583 | . . . . . 799 . . . . . 467 . 1317 Impact . | . . . . . . . . . . . . . . Slashing 2792 | . . . 1921 374 497 . . . . . . . . Piercing . | . . . . . . . . . . . . . . Highest Corruption 24 | . . . . . 24 . . . . . 3 . 9 Average Corruption 11 | . . . . . 15 . . . . . 2 . 2 Corruption Purged 34 | . . . . . 24 . . . . . 4 . 6 Effects 111 | . . . . . 101 . . . . . . . 10 Message Errors 13 | . . . . . 11 . . . . . . . 2 Matter Fused 8 | . . . . . 6 . . . . . . . 2 Heat Flow Errors 7 | . . . . . 7 . . . . . . . . Energy Discharges 15 | . . . . . 14 . . . . . . . 1 Data Loss (minor) 11 | . . . . . 10 . . . . . . . 1 Data Loss (major) 2 | . . . . . 2 . . . . . . . . Alerts 1 | . . . . . 1 . . . . . . . . Misdirections 11 | . . . . . 11 . . . . . . . . Targeting Errors 37 | . . . . . 34 . . . . . . . 3 Weapon Failures 6 | . . . . . 5 . . . . . . . 1 Overload Shots . | . . . . . . . . . . . . . . Overflow Damage 687 | . 18 1 175 . 20 17 . . . . 215 . 241 Projectiles . | . . . . . . . . . . . . . . Explosions 532 | . 18 1 20 . 20 17 . . . . 215 . 241 Melee 155 | . . . 155 . . . . . . . . . . Knockbacks . | . . . . . . . . . . . . . . Impact . | . . . . . . . . . . . . . . Kinetic . | . . . . . . . . . . . . . . Secondary . | . . . . . . . . . . . . . . Self-Inflicted Damage 205 | . . 27 . . . 17 . . . . . . 161 Shots 6 | . . 1 . . . 1 . . . . . . 4 Rammed . | . . . . . . . . . . . . . . Targets Rammed . | . . . . . . . . . . . . . . Kicked . | . . . . . . . . . . . . . . Crushed . | . . . . . . . . . . . . . . Highest Temperature 294 | . 294 3 14 7 240 . 4 . . . 29 . 32 Average Temperature 70 | . 103 2 5 4 106 . 4 . . . 26 . 16 Received Heat Transfer 1551 | . 204 42 243 30 . 45 189 72 54 171 156 . 345 Siege Activations . | . . . . . . . . . . . . . . Robots Corrupted 4 | . . . . . . . . . . . 1 . 3 Combat Hostiles 4 | . . . . . . . . . . . 1 . 3 Parts Fried 15 | . . . . . . . . . . . 1 . 14 Impact Corruptions . | . . . . . . . . . . . . . . Robots Melted . | . . . . . . . . . . . . . . Combat Hostiles . | . . . . . . . . . . . . . . Parts Melted 1 | . . . 1 . . . . . . . . . . Heat Transferred 2438 | . 888 . 50 . . 250 . . . . 700 . 550 Parts Sabotaged . | . . . . . . . . . . . . . . Parts Stolen . | . . . . . . . . . . . . . . Parts Stripped . | . . . . . . . . . . . . . . Power Chain Reactions . | . . . . . . . . . . . . . . Missiles Intercepted . | . . . . . . . . . . . . . . Latent Energy Used 2297 | . . . . . 1552 . . . . . 200 . 545 LE Corruption 36 | . . . . . 24 . . . . . 3 . 9 Alert | -11 -10 -10 -9 -9 -9 -8 -8 -8 -8 -8 -7 -7 -7 ------- Run | Scr Mat Min Mat Min Exi Min Mat Gar Mat Gar Fac Was Fac Peak Influence 4755 | . 182 293 592 103 . 546 1253 1540 1093 1141 3328 1164 4755 Average Influence 959 | . 49 131 228 39 . 265 878 1245 676 798 1236 1164 2526 Maximum Alert Level 5 | . . 1 2 . . 2 4 4 3 4 5 4 5 Low Security (%) 24 | 100 100 79 42 100 . 47 . . . . . . . Level 1 7 | . . 20 47 . . 22 10 . 6 . . . . Level 2 14 | . . . 10 . . 29 18 . 56 33 20 . . Level 3 23 | . . . . . . . 37 26 36 63 43 . 9 Level 4 14 | . . . . . . . 33 73 . 3 9 100 27 Level 5 4 | . . . . . . . . . . . 13 . 8 High Security 10 | . . . . . . . . . . . 13 . 54 Max Security . | . . . . . . . . . . . . . . Squads Dispatched 92 | . . . 4 . . . 7 . 3 . 38 . 40 Investigation 15 | . . . 3 . . . 1 . 2 . 5 . 4 Extermination 7 | . . . . . . . . . . . 7 . . Reinforcement 12 | . . . 1 . . . 5 . 1 . 3 . 2 Assault 54 | . . . . . . . . . . . 20 . 34 Garrison 4 | . . . . . . . 1 . . . 3 . . Intercept . | . . . . . . . . . . . . . . Construction Impeded 5 | . . . . . . . 4 . . . . . 1 Haulers Reinforced 2 | . . . . . . . . . . . 2 . . Stealth | -11 -10 -10 -9 -9 -9 -8 -8 -8 -8 -8 -7 -7 -7 --------- Run | Scr Mat Min Mat Min Exi Min Mat Gar Mat Gar Fac Was Fac Distress Signals 15 | . . . 8 . . . 6 . 1 . . . . Communications Jammed . | . . . . . . . . . . . . . . Distress Signals . | . . . . . . . . . . . . . . Times Spotted 510 | . 21 8 43 5 11 11 53 14 33 23 119 3 166 Peak Tracking Total 19 | . 6 3 6 2 5 3 7 10 5 5 17 2 19 Tactical Retreats 30 | . 1 . . . 2 . 5 1 . 3 8 . 10 Traps | -11 -10 -10 -9 -9 -9 -8 -8 -8 -8 -8 -7 -7 -7 ------- Run | Scr Mat Min Mat Min Exi Min Mat Gar Mat Gar Fac Was Fac Traps Triggered 20 | . . . . . . . . 5 . 10 4 . 1 Indirectly . | . . . . . . . . . . . . . . Trap Hack Attempts 29 | . . . . . . . 29 . . . . . . Triggered . | . . . . . . . . . . . . . . Disarmed 14 | . . . . . . . 4 . 10 . . . . Reprogrammed 10 | . . . . . . . . . 6 . 4 . . Reused 1 | . . . . . . . . . . . 1 . . Traps Extracted . | . . . . . . . . . . . . . . Installed 5 | . . 5 . . . . . . . . . . . Triggered 1 | . . . . . . . . . . . 1 . . Machines | -11 -10 -10 -9 -9 -9 -8 -8 -8 -8 -8 -7 -7 -7 ---------- Run | Scr Mat Min Mat Min Exi Min Mat Gar Mat Gar Fac Was Fac Machines Disabled 115 | . 1 2 2 . 19 5 4 6 3 4 38 . 31 Max in Single Turn 6 | . 1 1 2 . 2 2 2 2 1 1 6 . 6 Garrison Access 1 | . . . . . . . . . . . 1 . . Garrison Relay 8 | . . . . . . . . 4 . 4 . . . Phase Generator 1 | . . . . . . . . 1 . . . . . Machines Sabotaged . | . . . . . . . . . . . . . . Garrisons Compromised . | . . . . . . . . . . . . . . Overloaded Fab Kills . | . . . . . . . . . . . . . . Fab Network Shutdowns . | . . . . . . . . . . . . . . Hacking | -11 -10 -10 -9 -9 -9 -8 -8 -8 -8 -8 -7 -7 -7 --------- Run | Scr Mat Min Mat Min Exi Min Mat Gar Mat Gar Fac Was Fac Machines Accessed 114 | . 10 1 14 1 5 . 14 . 17 . 37 . 15 Terminals 64 | . 7 1 11 1 . . 9 . 11 . 17 . 7 Fabricators 6 | . . . . . . . . . . . 5 . 1 Repair Stations 5 | . 1 . . . . . 1 . 1 . 2 . . Recycling Units 16 | . 2 . 1 . . . 1 . 2 . 6 . 4 Scanalyzers 11 | . . . 2 . . . 2 . 2 . 3 . 2 Garrison Access 7 | . . . . . . . 1 . 1 . 4 . 1 Total Hacks 623 | . 46 3 73 9 49 . 82 . 120 . 184 . 57 Successful 487 | . 36 3 57 6 49 . 62 . 91 . 142 . 41 Failed 136 | . 10 . 16 3 . . 20 . 29 . 42 . 16 Catastrophic 10 | . 1 . 3 . . . 2 . 1 . 2 . 1 Database Lockouts . | . . . . . . . . . . . . . . Manual 412 | . 36 3 46 8 2 . 62 . 89 . 123 . 43 Terminals 391 | . 37 3 59 9 . . 54 . 100 . 98 . 31 Fabricators 33 | . . . . . . . . . . . 29 . 4 Repair Stations 10 | . 3 . . . . . 4 . 1 . 2 . . Recycling Units 70 | . 6 . 3 . . . 6 . 10 . 31 . 14 Scanalyzers 38 | . . . 11 . . . 11 . 4 . 9 . 3 Garrison Access 32 | . . . . . . . 7 . 5 . 15 . 5 Terminal Hacks 176 | . 7 2 20 3 49 . 14 . 44 . 32 . 5 Record 48 | . . . . . 48 . . . . . . . . Part Schematic 6 | . . . . . . . . . 3 . 3 . . Robot Schematic 1 | . . . . . . . . . . . 1 . . Robot Analysis 3 | . . . . . . . . . 1 . 1 . 1 Prototype ID Bank 17 | . 3 2 3 . . . 3 . 2 . 3 . 1 Level Access Points 3 | . . . . . . . 1 . 1 . 1 . . Branch Access Points 6 | . 1 . 1 . . . 1 . 2 . 1 . . Emergency Access Points 1 | . . . . . . . . . 1 . . . . Machine Index 4 | . . . 1 . . . 1 . 1 . 1 . . Terminal Index 7 | . 1 . 1 . . . 1 . 2 . 1 . 1 Alert Level 3 | . . . 1 . . . . . 1 . 1 . . Unreport Threat 24 | . . . 6 2 . . 3 . 7 . 6 . . Locate Traps 5 | . . . 1 . . . . . 2 . 2 . . Disarm Traps 3 | . . . . . . . . . 3 . . . . Reprogram Traps 2 | . . . . . . . . . 1 . 1 . . Dispatch Records 1 | . . . . . . . . . . . 1 . . Security Status 2 | . . . 1 . . . . . 1 . . . . Investigation Status 4 | . . . . . . . . . 2 . 2 . . Reinforcement Status 1 | . . . . . . . . . 1 . . . . Recall Investigation 4 | . . . 1 . . . . . 1 . 2 . . Recall Reinforcements 5 | . . . 1 . . . 2 . 1 . 1 . . Recall Assault 1 | . . . . . . . . . . . 1 . . Hauler Manifests 8 | . 1 . 1 . . . 1 . 3 . 1 . 1 Registered Components 6 | . 1 . 1 . . . 1 . 1 . 1 . 1 Registered Prototypes 3 | . . . 1 . . . . . 1 . 1 . . Zone Layout 7 | . . . . 1 . . . . 6 . . . . EX-Prototype ID Bank 1 | . . . . . 1 . . . . . . . . Fabricator Hacks 10 | . . . . . . . . . . . 10 . . Network Status 1 | . . . . . . . . . . . 1 . . Load Schematic 4 | . . . . . . . . . . . 4 . . Build 5 | . . . . . . . . . . . 5 . . Repair Station Hacks 4 | . 2 . . . . . 2 . . . . . . Scan Component 2 | . 1 . . . . . 1 . . . . . . Repair 2 | . 1 . . . . . 1 . . . . . . Recycling Unit Hacks 18 | . 2 . 1 . . . 2 . 2 . 8 . 3 Report Inventory 3 | . . . . . . . 1 . . . 2 . . Retrieve Components 15 | . 2 . 1 . . . 1 . 2 . 6 . 3 Scanalyzer 26 | . . . 9 . . . 10 . 2 . 5 . . Insert Component 10 | . . . 4 . . . 3 . 1 . 2 . . Analyze 16 | . . . 5 . . . 7 . 1 . 3 . . Garrison Access Hacks 10 | . . . . . . . 1 . 2 . 5 . 2 Unlock Access 7 | . . . . . . . 1 . 1 . 4 . 1 Coupler Status 3 | . . . . . . . . . 1 . 1 . 1 Unauthorized Hacks 545 | . 56 2 54 6 . . 74 . 94 . 188 . 71 Terminals 155 | . 21 1 23 3 . . 24 . 29 . 39 . 15 Track 51 | . 7 . 10 1 . . 8 . 10 . 11 . 4 Assimilate 24 | . 5 . 1 . . . 2 . 3 . 10 . 3 Botnet 57 | . 7 1 10 1 . . 9 . 10 . 13 . 6 Disrupt 12 | . 1 . 1 . . . 2 . 4 . 3 . 1 Operators 11 | . 1 . 1 1 . . 3 . 2 . 2 . 1 Fabricators 15 | . . . . . . . . . . . 14 . 1 Report 3 | . . . . . . . . . . . 2 . 1 Prioritize 5 | . . . . . . . . . . . 5 . . Siphon 5 | . . . . . . . . . . . 5 . . Haulers 2 | . . . . . . . . . . . 2 . . Repair Stations 5 | . 1 . . . . . 1 . 1 . 2 . . Mechanics 5 | . 1 . . . . . 1 . 1 . 2 . . Recycling Units 42 | . 3 . 2 . . . 4 . 6 . 17 . 10 Monitor 8 | . . . 1 . . . 1 . 1 . 3 . 2 Reject 16 | . 2 . 1 . . . 1 . 2 . 6 . 4 Recyclers 10 | . 1 . . . . . 1 . 2 . 4 . 2 Mask 8 | . . . . . . . 1 . 1 . 4 . 2 Scanalyzers 10 | . . . 2 . . . 1 . 2 . 3 . 2 Extract 10 | . . . 2 . . . 1 . 2 . 3 . 2 Garrison Access 16 | . . . . . . . 3 . 3 . 7 . 3 Broadcast 1 | . . . . . . . . . . . 1 . . Reprogram 7 | . . . . . . . 1 . 1 . 4 . 1 Intercept 3 | . . . . . . . 1 . 1 . . . 1 Watchers 5 | . . . . . . . 1 . 1 . 2 . 1 Data Cores Recovered 2 | . . . . . . . . . . . 2 . . Used . | . . . . . . . . . . . . . . Hacking Detections 87 | . 8 1 12 1 . . 10 . 14 . 30 . 11 Full Trace Events 9 | . 2 . 1 . . . . . 2 . 2 . 2 Feedback Events . | . . . . . . . . . . . . . . Feedback Blocked . | . . . . . . . . . . . . . . Robot Schematics Acquired 1 | . . . . . . . . . . . 1 . . Robots Built . | . . . . . . . . . . . . . . Matter . | . . . . . . . . . . . . . . Time . | . . . . . . . . . . . . . . Total Robot Build Rating . | . . . . . . . . . . . . . . Part Schematics Acquired 78 | . . . 30 . . . 9 . 13 . 18 . 8 Parts Built 5 | . . . . . . . . . . . 5 . . Matter 676 | . . . . . . . . . . . 676 . . Time 203 | . . . . . . . . . . . 203 . . Total Part Build Rating 18 | . . . . . . . . . . . 18 . . Parts Repaired 2 | . 1 . . . . . 1 . . . . . . Time 133 | . 38 . . . . . 95 . . . . . . Parts Recycled . | . . . . . . . . . . . . . . Recycled Matter . | . . . . . . . . . . . . . . Retrieved Matter . | . . . . . . . . . . . . . . Retrieved Components 55 | . 4 . 9 . . . 9 . 12 . 19 . 2 Parts Scanalyzed 10 | . . . 4 . . . 3 . 1 . 2 . . Part Schematics Acquired 10 | . . . 4 . . . 3 . 1 . 2 . . Parts Damaged 2 | . . . . . . . 1 . . . 1 . . Bothacking | -11 -10 -10 -9 -9 -9 -8 -8 -8 -8 -8 -7 -7 -7 ------------ Run | Scr Mat Min Mat Min Exi Min Mat Gar Mat Gar Fac Was Fac Used RIF Installer 2 | . . . . . . . . 1 . 1 . . . Robot Detection 1 | . . . . . . . . . . 1 . . . Robots Hacked . | . . . . . . . . . . . . . . Non-combat . | . . . . . . . . . . . . . . Combat . | . . . . . . . . . . . . . . Robot Hacks Applied . | . . . . . . . . . . . . . . Relay Couplers Released 14 | . . . . . . . . 6 . 7 . . 1 Machine Destruction 13 | . . . . . . . . 6 . 7 . . . Programmers 1 | . . . . . . . . . . . . . 1 Robots Rewired . | . . . . . . . . . . . . . . Allies Hacked 2 | . . . . . . . . . . . 2 . . Hacks Repelled . | . . . . . . . . . . . . . . Allies | -11 -10 -10 -9 -9 -9 -8 -8 -8 -8 -8 -7 -7 -7 -------- Run | Scr Mat Min Mat Min Exi Min Mat Gar Mat Gar Fac Was Fac Total Allies 43 | . 3 3 1 . . . 4 . 1 . 9 19 3 Largest Group 19 | . 3 6 5 4 4 4 5 2 1 . 5 19 19 Highest-Rated Group 487 | . 30 111 80 40 40 40 50 26 10 . 114 487 487 Highest-Rated Ally 38 | . 10 31 31 10 10 10 16 16 10 . 38 35 35 Total Orders 55 | . 13 4 15 4 2 8 5 . . . 4 . . STAY 1 | . . . . 1 . . . . . . . . . GOTO 28 | . 7 2 7 1 1 4 4 . . . 2 . . ROAM 1 | . . . 1 . . . . . . . . . . FOLLOW 25 | . 6 2 7 2 1 4 1 . . . 2 . . Ally Attacks 169 | . . . 33 . . . 10 2 . . 11 . 113 Total Damage 2782 | . . . 433 . . . 94 16 . . 205 . 2034 Kills 37 | . . . 10 . . . 3 1 . . 4 . 19 Allies Corrupted . | . . . . . . . . . . . . . . Allies Melted . | . . . . . . . . . . . . . . Turrets Deployed 1 | . . . . . 1 . . . . . . . . Intel | -11 -10 -10 -9 -9 -9 -8 -8 -8 -8 -8 -7 -7 -7 ------- Run | Scr Mat Min Mat Min Exi Min Mat Gar Mat Gar Fac Was Fac Robot Analysis Total 3 | . . . . . . . . . 1 . 1 . 1 Derelict Logs Recovered 3 | . . 2 . 1 . . . . . . . . . Drone Launches . | . . . . . . . . . . . . . . Drone Recoveries . | . . . . . . . . . . . . . . Exploration | -11 -10 -10 -9 -9 -9 -8 -8 -8 -8 -8 -7 -7 -7 ------------- Run | Scr Mat Min Mat Min Exi Min Mat Gar Mat Gar Fac Was Fac Turns Passed 13713 | 20 1612 307 1153 318 2188 302 998 456 771 531 3231 309 1517 Spaces Moved 24838 | 31 1067 693 2075 916 2513 748 1925 833 1637 790 7632 580 3398 Core 570 | 31 422 . . . 117 . . . . . . . . Treads . | . . . . . . . . . . . . . . Legs . | . . . . . . . . . . . . . . Wheels . | . . . . . . . . . . . . . . Hover . | . . . . . . . . . . . . . . Flight 24268 | . 645 693 2075 916 2396 748 1925 833 1637 790 7632 580 3398 Fastest Speed 23 | 50 37 37 26 26 26 26 26 26 26 26 26 26 23 Average Speed 28 | 50 44 37 33 26 29 26 26 26 26 26 26 26 25 Slowest Speed 100 | 50 100 37 37 26 100 26 29 26 26 26 29 91 26 Overloaded Moves 282 | . . . . . . . . . . . . . 282 Propulsion Burnouts . | . . . . . . . . . . . . . . Robots Hopped 205 | . 9 3 34 10 1 4 18 . 19 . 82 . 25 Cave-ins Triggered . | . . . . . . . . . . . . . . Exploration Rate (%) 88 | 3 99 99 99 100 94 99 99 99 99 86 99 96 74 Regions Visited 13 Branch Regions 4 Pre-discovered Areas 2 | . . . . 1 1 . . . . . . . . Known Exits Taken 8 | . 1 1 1 1 1 1 1 . 1 . . . . Unknown Exits Taken 1 | 1 . . . . . . . . . . . . . Scrap Searched 3 | . . 1 . 1 . 1 . . . . . . . Spaces Dug 7 | . . 7 . . . . . . . . . . . Terrain Destroyed 962 | . 13 48 62 38 96 36 52 88 41 12 218 . 258 Melee . | . . . . . . . . . . . . . . Projectile 172 | . . . . . 10 9 52 12 41 12 9 . 27 AOE 790 | . 13 48 62 38 86 27 . 76 . . 209 . 231 Actions | -11 -10 -10 -9 -9 -9 -8 -8 -8 -8 -8 -7 -7 -7 --------- Run | Scr Mat Min Mat Min Exi Min Mat Gar Mat Gar Fac Was Fac Total 29977 | 33 2133 723 2368 961 3848 820 2257 1003 1857 1061 8478 720 3715 Wait 3279 | . 987 2 125 30 1167 25 100 11 125 25 535 104 43 Move 24430 | 30 1049 686 2010 895 2510 739 1888 831 1600 789 7475 579 3349 Hop 190 | . 8 3 30 10 1 4 18 . 17 . 75 . 24 Pick Up 37 | . 1 2 11 . 8 . 4 1 3 . 5 2 . Fast Attach 90 | 3 11 . 6 1 24 1 15 1 4 . 16 5 3 Attach 19 | . 4 . 5 . . . 2 2 . . 3 3 . Detach 16 | . 5 . 3 . 1 . 3 1 . . 3 . . Swap 24 | . 1 . 8 1 1 . 4 . . . 9 . . Drop 118 | . 7 2 18 1 32 1 17 2 7 . 20 9 2 Fire 1075 | . 55 16 69 8 80 25 130 57 86 46 248 14 241 Melee 73 | . . . 46 10 17 . . . . . . . . Ram . | . . . . . . . . . . . . . . Kick . | . . . . . . . . . . . . . . Crush . | . . . . . . . . . . . . . . Escape Stasis 305 | . . . . . . . . 85 . 179 41 . . Rewire . | . . . . . . . . . . . . . . Trap 34 | . . 5 . . . . 29 . . . . . . Miscellaneous 287 | . 5 7 37 5 7 25 47 12 15 22 48 4 53 Route ------- -11/Scrapyard -10/Materials (discovered 5 exits: *Mat x3 / *Min x2) -10/Mines (discovered 2 exits: *Mat x2) -9/Materials (discovered 5 exits: *Mat x3 / *Min x2) -9/Mines (discovered 3 exits: *Mat x2 / *Exi) -9/Exiles (discovered 2 exits: *Min x2) -8/Mines (discovered 2 exits: *Mat x2) -8/Materials (discovered 6 exits: *Fac x3 / *Sto x2 / Gar) -8/Garrison (discovered 3 exits: *Mat x3) -8/Materials (discovered 6 exits: *Fac x3 / *Sto x2 / Gar) -8/Garrison (discovered 3 exits: *Fac x3) -7/Factory (discovered 9 exits: *Fac x4 / *Low x2 / Gar / Gar / Gar) -7/Waste -7/Factory (discovered 6 exits: *Fac x3 / *Low x2 / Gar) History --------- Turn | Location | Event 2 | -11/Scrapyard | Met Revision 17 2 | -11/Scrapyard | Upgraded with Propulsion slot (x1) 2 | -11/Scrapyard | Upgraded with Utility slot (x1) 2 | -11/Scrapyard | Upgraded with Weapon slot (x1) 10 | -11/Scrapyard | Discovered new exit (range 15) 21 | -11/Scrapyard | Entered Materials 65 | -10/Materials | Discovered new exit (range 11) 306 | -10/Materials | Build established: Mutant 1002 | -10/Materials | Discovered new exit (range 10) 1043 | -10/Materials | Repaired Lgt. Nuclear Core 1392 | -10/Materials | Discovered new exit (range 14) 1419 | -10/Materials | Identified exit to Mines 1579 | -10/Materials | Discovered new exit (range 15) 1633 | -10/Materials | Entered Mines 1633 | -10/Mines | Accompanied by 3 allies 1635 | -10/Mines | Reached level 2 1639 | -10/Mines | Received a Mining Laser from a helpful Derelict 1672 | -10/Mines | Learned 2 Materials zone layouts 1713 | -10/Mines | Discovered new exit (range 9) 1716 | -10/Mines | Identified exit to Materials 1777 | -10/Mines | Found a hidden stash of uninstalled traps 1829 | -10/Mines | Discovered exit to Materials (range 14) 1849 | -10/Mines | Learned Materials stockpile data 1890 | -10/Mines | Reached level 3 1940 | -10/Mines | Entered Materials 1940 | -9/Materials | Accompanied by 6 allies 1941 | -9/Materials | Identified exit to Mines 1942 | -9/Materials | Reached level 4 1946 | -9/Materials | Led the pair of lost Derelicts to an unsafe place 2184 | -9/Materials | Discovered exit to Mines (range 8) 2252 | -9/Materials | Discovered new exit (range 4) 2254 | -9/Materials | Identified exit to Materials 2323 | -9/Materials | Reached level 5 2379 | -9/Materials | Upgraded with Utility slot (x1) 2379 | -9/Materials | Upgraded with Weapon slot (x1) 2467 | -9/Materials | Reached level 6 2647 | -9/Materials | Discovered exit to Materials (range 5) 2806 | -9/Materials | Discovered exit to Materials (range 11) 2818 | -9/Materials | Upgraded with Propulsion slot (x2) 2890 | -9/Materials | Reached level 7 2976 | -9/Materials | Destroyed 9 combat bots 3093 | -9/Materials | Entered Mines 3093 | -9/Mines | Accompanied by 4 allies 3095 | -9/Mines | Reached level 8 3098 | -9/Mines | Assembled infested the area 3103 | -9/Mines | Assisted by a Guerilla fighting off Assembled 3123 | -9/Mines | Build established: Hacker-Sprinter 3164 | -9/Mines | Met a Derelict bent on vengeance 3228 | -9/Mines | Learned location of Storage (-8) 3264 | -9/Mines | Discovered exit to Materials (range 4) 3287 | -9/Mines | Discovered exit to Materials (range 13) 3354 | -9/Mines | Deemed a non-threat by the Exiles lab entrance 3354 | -9/Mines | Discovered new exit (range 5) 3355 | -9/Mines | Identified exit to Exiles 3411 | -9/Mines | Entered Exiles 3411 | -9/Exiles | Accompanied by 4 allies 3415 | -9/Exiles | Discovered new exit (range 15) 3419 | -9/Exiles | Identified exit to Mines 3424 | -9/Exiles | Met 8R-AWN 3428 | -9/Exiles | Met EX-HEX 3445 | -9/Exiles | Met EX-DEC 3451 | -9/Exiles | Visited The Gauntlet 3488 | -9/Exiles | Met EX-BIN 3519 | -9/Exiles | Learned location of Zion (-7) 3532 | -9/Exiles | Discovered exit to Mines (range 14) 3564 | -9/Exiles | Aligned with FarCom system 3565 | -9/Exiles | Given EX-Vault access code 3571 | -9/Exiles | Opened EX-Vault 3573 | -9/Exiles | Found Prototype Device 3573 | -9/Exiles | Identified Skeleton Box 3576 | -9/Exiles | Found Prototype Energy Cannon 3576 | -9/Exiles | Identified Latent Energy Streamer 3579 | -9/Exiles | Found Prototype Leg 3579 | -9/Exiles | Identified Potential Leg 3604 | -9/Exiles | Warned to stay clear of 0b10 Research branches 3749 | -9/Exiles | Attacked by the Exiles 3781 | -9/Exiles | System corruption reached 10% 3822 | -9/Exiles | Found Prototype Ballistic Gun 3822 | -9/Exiles | Identified 8R-AWN's Boregun 3836 | -9/Exiles | Core integrity fell below 50% 3892 | -9/Exiles | Core integrity fell below 20% 3918 | -9/Exiles | Destroyed 8R-AWN 3922 | -9/Exiles | Found Prototype Processor 3922 | -9/Exiles | Identified Exp. Targeting Computer 3930 | -9/Exiles | Found Prototype Protection 3930 | -9/Exiles | Identified 8R-AWN's Armor/EX 3939 | -9/Exiles | Found Prototype Device 3939 | -9/Exiles | Identified AS-neutralizer No. 17b 3948 | -9/Exiles | Found 8R-AWN's Boregun 4101 | -9/Exiles | Destroyed EX-HEX 4127 | -9/Exiles | Destroyed EX-BIN 4147 | -9/Exiles | Destroyed EX-DEC 4152 | -9/Exiles | Found Prototype Device 4152 | -9/Exiles | Identified System Purifier 4439 | -9/Exiles | Build established: Scavenger-Mutant 5507 | -9/Exiles | Found Deploy-a-Sentry 5538 | -9/Exiles | DAS Turret deployed 5599 | -9/Exiles | Left Exiles lab with Latent Energy Streamer 5599 | -9/Exiles | Entered Mines 5599 | -8/Mines | Accompanied by 4 allies 5643 | -8/Mines | Reached level 9 5656 | -8/Mines | Upgraded with Utility slot (x1) 5682 | -8/Mines | Discovered exit to Materials (range 12) 5746 | -8/Mines | Discovered exit to Materials (range 16) 5811 | -8/Mines | Reached level 10 5816 | -8/Mines | Build established: Scavenger-Sprinter 5901 | -8/Mines | Entered Materials 5901 | -8/Materials | Accompanied by 4 allies 5903 | -8/Materials | Reached level 11 5922 | -8/Materials | Discovered new exit (range 7) 5958 | -8/Materials | Identified exit to Storage 5958 | -8/Materials | Identified exit to Factory 6037 | -8/Materials | Reached level 12 6094 | -8/Materials | Upgraded with Utility slot (x1) 6182 | -8/Materials | Garrison activated, responded to threat 6236 | -8/Materials | Identified exit to Garrison 6268 | -8/Materials | Reached level 13 6289 | -8/Materials | Destroyed 15 combat bots 6681 | -8/Materials | Build established: Hacker-Sprinter 6852 | -8/Materials | Repaired Broken Adv. Recalibrator 6899 | -8/Materials | Entered Garrison 6899 | -8/Garrison | Accompanied by 2 allies 6926 | -8/Garrison | Triggered checkpoint 6928 | -8/Garrison | Triggered checkpoint 6928 | -8/Garrison | Triggered checkpoint 6939 | -8/Garrison | Reached level 14 6979 | -8/Garrison | Destroyed 8 combat bots 7021 | -8/Garrison | Phase Generator disabled 7024 | -8/Garrison | Discovered new exit (range 12) 7036 | -8/Garrison | Triggered checkpoint 7068 | -8/Garrison | Garrison Relay disabled 7094 | -8/Garrison | Triggered checkpoint 7102 | -8/Garrison | Triggered checkpoint 7124 | -8/Garrison | Triggered checkpoint 7129 | -8/Garrison | Garrison Relay disabled 7142 | -8/Garrison | Discovered new exit (range 14) 7192 | -8/Garrison | Triggered checkpoint 7248 | -8/Garrison | Garrison Relay disabled 7256 | -8/Garrison | Discovered new exit (range 15) 7262 | -8/Garrison | Installed Relay Interface Framework 7311 | -8/Garrison | Garrison Relay disabled 7355 | -8/Garrison | Entered Materials 7649 | -8/Materials | Discovered exit to Factory (range 15) 7806 | -8/Materials | Identified exit to Garrison 7839 | -8/Materials | Reached level 15 7878 | -8/Materials | Destroyed 8 combat bots 8126 | -8/Materials | Entered Garrison 8138 | -8/Garrison | Garrison Relay disabled 8280 | -8/Garrison | Triggered checkpoint 8294 | -8/Garrison | Destroyed 9 combat bots 8302 | -8/Garrison | Garrison Relay disabled 8360 | -8/Garrison | Triggered checkpoint 8369 | -8/Garrison | Discovered exit to Factory (range 12) 8380 | -8/Garrison | Triggered checkpoint 8406 | -8/Garrison | Garrison Relay disabled 8428 | -8/Garrison | Triggered checkpoint 8461 | -8/Garrison | Garrison Relay disabled 8478 | -8/Garrison | Triggered checkpoint 8495 | -8/Garrison | Discovered exit to Factory (range 12) 8500 | -8/Garrison | Expanded RIF knowledge: Robot Detection 8512 | -8/Garrison | Triggered checkpoint 8550 | -8/Garrison | Triggered checkpoint 8576 | -8/Garrison | Triggered checkpoint 8638 | -8/Garrison | Triggered checkpoint 8654 | -8/Garrison | Discovered exit to Factory (range 10) 8657 | -8/Garrison | Entered Factory 8672 | -7/Factory | Discovered new exit (range 16) 8713 | -7/Factory | Reached level 16 8784 | -7/Factory | Discovered new exit (range 15) 8903 | -7/Factory | Identified exit to Garrison 9101 | -7/Factory | Discovered new exit (range 2) 9125 | -7/Factory | Destroyed 7 combat bots 9236 | -7/Factory | Destroyed 8 combat bots 9373 | -7/Factory | Fabricated Adv. Signal Interpreter (x2) 9384 | -7/Factory | Identified exit to Lower Caves 9384 | -7/Factory | Identified exit to Factory 9451 | -7/Factory | Identified exit to Garrison 9637 | -7/Factory | Identified exit to Garrison 9849 | -7/Factory | Reached level 17 9857 | -7/Factory | First assault squad dispatched 9892 | -7/Factory | Upgraded with Utility slot (x1) 10514 | -7/Factory | Fabricated Imp. Cesium-ion Thruster? 10553 | -7/Factory | Fabricated Imp. Cesium-ion Thruster (x1) 10756 | -7/Factory | Garrison activated, responded to threat 11036 | -7/Factory | Reached level 18 11072 | -7/Factory | Identified exit to Garrison 11227 | -7/Factory | Fabricated Imp. Cesium-ion Thruster? 11467 | -7/Factory | High security lockdown imminent 11547 | -7/Factory | High security lockdown engaged 11863 | -7/Factory | Destroyed 23 combat bots 11888 | -7/Factory | Manually triggered Chute Trap 11888 | -7/Factory | Sucked down chute 11888 | -7/Factory | Entered Waste 11901 | -7/Waste | Spotted C-40 Crusher 11914 | -7/Waste | Destroyed C-40 Crusher 11920 | -7/Waste | Spotted C-40 Crusher 11920 | -7/Waste | Destroyed C-40 Crusher 11925 | -7/Waste | Destroyed C-40 Crusher 11925 | -7/Waste | Destroyed C-40 Crusher 11938 | -7/Waste | Spotted C-40 Crusher 11938 | -7/Waste | Destroyed C-40 Crusher 11945 | -7/Waste | Destroyed C-40 Crusher 11951 | -7/Waste | Discovered new exit (range 15) 11957 | -7/Waste | Identified exit to Factory 11987 | -7/Waste | Warlord forces began an assault 12003 | -7/Waste | Found Unknown Protection 12003 | -7/Waste | Identified Damper Plating 12197 | -7/Waste | Entered Factory 12197 | -7/Factory | Accompanied by 19 allies 12248 | -7/Factory | Reached level 19 12291 | -7/Factory | Build established: Scavenger-Sprinter 12436 | -7/Factory | Discovered exit to Lower Caves (range 10) 12460 | -7/Factory | Identified exit to Garrison 12542 | -7/Factory | Upgraded with Utility slot (x1) 12597 | -7/Factory | First assault squad dispatched 12618 | -7/Factory | Discovered exit to Factory (range 5) 12733 | -7/Factory | Destroyed 7 combat bots 12752 | -7/Factory | Discovered exit to Lower Caves (range 14) 12773 | -7/Factory | Discovered exit to Factory (range 6) 12887 | -7/Factory | High security lockdown imminent 12956 | -7/Factory | Destroyed 7 combat bots 12967 | -7/Factory | High security lockdown engaged 13007 | -7/Factory | Discovered exit to Factory (range 11) 13278 | -7/Factory | Destroyed 26 combat bots 13278 | -7/Factory | Reached level 20 13431 | -7/Factory | Destroyed 16 combat bots 13474 | -7/Factory | Core integrity fell below 50% 13575 | -7/Factory | Destroyed 17 combat bots 13627 | -7/Factory | Core integrity fell below 20% 13714 | -7/Factory | Destroyed by H-55 Commando with Gauss Rifle Last Messages --------------- 13663_ Acquired Prototype Engine. 13663_ Identified Hvy. Deuterium Engine. 13664_ Dropped Hvy. Deuterium Engine. 13665_ Acquired Mak. Power Source. 13668_ Acquired 20 matter. 13678_ HV Slug penetrates Wall. 13685_ Acquired 24 matter. 13686_ HV Slug penetrates M-28 Smith. 13686_ M-28 Smith suffers critical hit. 13686_ M-28 Smith destroyed. 13686_ HV Slug penetrates Wall. 13687_ System corrupted: Component data lost. 13687_ ALERT: Heavy assault forces dispatched. 13688_ Acquired 12 matter. 13701_ HV Slug penetrates Wall. 13711_ System corrupted: 8R-AWN's Boregun targeting data glitched. 13711_ HV Slug penetrates Wall. 13712_ System corrupted: Matter fused (-9). 13714_ Slug penetrates Wall. 13714_ Phase Shifter destroyed. Map ----- +----------------------------------------------------+ | ?????????????????# """ """ """ """ ## +###### | | ?????????????????# # | | ?????????????????# """ """ " # | | ?????????????????# "" """ # | | ?????????????????# "" """ # | | ?????????????????# # | | #######??????????# h # | | #??????????#l ########## #### ######## | | ############ #??## #?????# | | # = #??# il ! ! #?????# | | """ # %= #???# #?????# | | """ # ^^ " #???# """ """ #?????# | | """ " ^^ "%%" h #???# """ """ #?????# | | # < ! i#???# """C""" #????## | | """ # ^ ! %= %####h#####??# C ######[ | | """ # ^ *%!= [# #??# """ """ + | | """ ######## * + #??# """ """ ###### | | #??????#=#### #??# """ """ #????## | | #??????#=#??# #??# #?????? | | ###+###??????#%#??#= #??# * [%*#?????? | | ??# #????????#*#??# #??##########+###?##### | | ??# #????????#/#??# #???????????# #???# " | | ??# #??????###%#### #???????????# #???# " | | ?## ########==*!=## #???????????# #???# | | ?# [%*%=[##+#################### ##### """ | | ## *]![!*%= @ == *+ """ | | !=!=#################### ##### """ | | ###+######## ! #??????????????????# #???# """ | | #######+########?????????????# #???# [ | | """ # #?????????????# #???##### | | """ # [ #?????????????# #???????? | | """ # #?????????????# #???????? | | "" # #?????????????######???????? | | "" # #??????????????????????????? | | ? # #??????????????????????????? | | ##??###################??????????????????????????? | | | | | | | | | | | | | | | | | | | | | | | | | | | | | +----------------------------------------------------+ Best States ------------- Heat Dissipation 67 Energy Generation 30 Energy Capacity 370 Matter Stores 300 Matter Capacity 300 Sight Range 16 Robot Scan Range 20 Terrain Scan Density 10 Armor Coverage 1200 Resistance: KI 5 Resistance: TH 5 Resistance: EX 5 Resistance: EM 90 Weapon Cycling 25 Phase Shifting 5 Evasion (%) 70 Targeting Accuracy 12 Launcher Accuracy 40 Core Analysis 6 Armor Integrity Analysis 50 Offensive Hacking 20 Defensive Hacking 20 Item Schematics ----------------- Imp. Flight Unit | -9/Materials | Scanalyzed Recalibrator | -9/Materials | Scanalyzed Lgt. Nuclear Core | -9/Materials | Scanalyzed Katana | -9/Materials | Scanalyzed Imp. Light Cannon | -9/Materials | Extracted Hpw. Tractor Beam | -9/Materials | Extracted Plasma Cutter | -9/Materials | Extracted Power Shielding | -9/Materials | Extracted Imp. Hover Unit | -9/Materials | Extracted Visual Processing Unit | -9/Materials | Extracted Grenade Launcher | -9/Materials | Extracted Imp. Signal Interpreter | -9/Materials | Extracted Armor Integrity Analyzer | -9/Materials | Extracted Welding Torch | -9/Materials | Extracted Hvy. Ion Engine | -9/Materials | Extracted Spread Laser | -9/Materials | Extracted Utility Shielding | -9/Materials | Extracted Weight Redist. System | -9/Materials | Extracted Shield Generator | -9/Materials | Extracted Imp. Terrain Scanner | -9/Materials | Extracted Tractor Beam | -9/Materials | Extracted Mni. Grenade Launcher | -9/Materials | Extracted Com. Wheel | -9/Materials | Extracted Integration Mediator | -9/Materials | Extracted Particle Cannon | -9/Materials | Extracted Hrd. Light Armor Plating | -9/Materials | Extracted Hvy. Assault Rifle | -9/Materials | Extracted Reclamation Unit | -9/Materials | Extracted Autogun | -9/Materials | Extracted Flight Unit | -9/Materials | Extracted Adv. Recalibrator | -8/Materials | Scanalyzed System Purifier | -8/Materials | Scanalyzed Adv. Weapon Cycler | -8/Materials | Scanalyzed Arm. Wheel | -8/Materials | Extracted Deuterium Engine | -8/Materials | Extracted Electrolaser | -8/Materials | Extracted Recoil Stabilizer | -8/Materials | Extracted Com. Matter Pod | -8/Materials | Extracted Hvy. Mace | -8/Materials | Extracted Enh. Autogun | -8/Materials | Scanalyzed System Shield | -8/Materials | Extracted Adv. Signal Interpreter | -8/Materials | Hacked Adv. Targeting Computer | -8/Materials | Hacked Lgt. Deuterium Engine | -8/Materials | Extracted Sml. Laser | -8/Materials | Extracted Imp. Aluminum Leg | -8/Materials | Extracted Hvy. EM Shotgun | -8/Materials | Extracted Lgt. Treads | -8/Materials | Extracted Great Maul | -8/Materials | Extracted Flak Cannon | -8/Materials | Extracted Field Recycling Unit | -8/Materials | Extracted Hardlight Generator | -8/Materials | Extracted Cld. VTOL Module | -7/Factory | Scanalyzed Adv. Terrain Scanner | -7/Factory | Extracted Terrain Scan Processor | -7/Factory | Extracted Spear | -7/Factory | Extracted Hvy. Laser | -7/Factory | Extracted Mic. Nuclear Core | -7/Factory | Extracted Adv. Sensor Array | -7/Factory | Extracted Adv. Weight Redist. System | -7/Factory | Extracted Disposable Heat Sink | -7/Factory | Extracted Imp. Salvage Targeting Computer | -7/Factory | Extracted Xenon Bombardment Thruster | -7/Factory | Extracted Minigun | -7/Factory | Extracted Arm. Huge Wheel | -7/Factory | Extracted Adv. Reclamation Unit | -7/Factory | Hacked Imp. System Shield | -7/Factory | Hacked Imp. Cesium-ion Thruster | -7/Factory | Scanalyzed Adv. Assault Cannon | -7/Factory | Extracted Adv. Melee Analysis Suite | -7/Factory | Hacked Power Maul | -7/Factory | Extracted Titanium Leg | -7/Factory | Extracted Axe | -7/Factory | Extracted Gauss Rifle | -7/Factory | Extracted Melee Analysis Suite | -7/Factory | Extracted Plasma Cannon | -7/Factory | Extracted Com. Battery | -7/Factory | Extracted Transmission Jammer | -7/Factory | Extracted Robot Schematics ------------------ A-02 Transporter | -7/Factory | Hacked Fabricated ------------ Adv. Signal Interpreter | x2 | -7/Factory Imp. Cesium-ion Thruster | x1 | -7/Factory Imp. Cesium-ion Thruster | x1 | -7/Factory Imp. Cesium-ion Thruster | x1 | -7/Factory Alien Tech Used ----------------- None Achievements -------------- Infiltrator Challenges ------------ None RPGLIKE | -11 -10 -10 -9 -9 -9 -8 -8 -8 -8 -8 -7 -7 -7 --------- Run | Scr Mat Min Mat Min Exi Min Mat Gar Mat Gar Fac Was Fac Levels Raised 19 | . . 2 4 1 . 2 3 1 1 . 3 . 2 XP Earned 31893 | 3000 1480 1770 7037 673 243 2981 4929 1105 950 584 5164 38 1939 XP Spent 29945 | 2925 . 875 7425 . 1670 3300 3850 2100 . 1200 4400 . 2200 Upgrades 62 | 13 . 3 17 . 10 5 4 2 . 1 5 . 2 Propulsion Slot 3 | 1 . . 2 . . . . . . . . . . Utility Slot 6 | 1 . . 1 . . 1 1 . . . 1 . 1 Weapon Slot 2 | 1 . . 1 . . . . . . . . . . Heat Dissipation 7 | . . . 1 . 6 . . . . . . . . Energy Generation 3 | . . . 2 . . . . . . . 1 . . Energy Storage 4 | . . . . . 4 . . . . . . . . Mass Support 2 | 1 . 1 . . . . . . . . . . . Inventory Capacity 4 | 1 . . 1 . . . 1 . . . 1 . . Sensor Range 10 | 3 . 2 5 . . . . . . . . . . Ranged Accuracy 9 | . . . . . . 4 2 2 . 1 . . . Melee Accuracy 4 | . . . 4 . . . . . . . . . . Hack Attack % 2 | 1 . . . . . . . . . . 1 . . Hack Defense % 2 | 1 . . . . . . . . . . 1 . . KI Resistance % 1 | 1 . . . . . . . . . . . . . TH Resistance % 1 | 1 . . . . . . . . . . . . . EX Resistance % 1 | 1 . . . . . . . . . . . . . KI Damage % 1 | . . . . . . . . . . . . . 1 Protomatter Created 6457 | . 43 82 318 21 18 172 768 174 568 461 1705 . 2127 Integrity Restored 4993 | . 102 132 636 58 154 516 888 212 162 345 785 79 924 Core 4023 | . 102 132 556 55 131 516 566 163 133 273 640 . 756 Parts 970 | . . . 80 3 23 . 322 49 29 72 145 79 168 Protomatter Decayed 5035 | . -9 . 69 20 12 . 476 108 507 250 1380 38 2184 Game ------ Seed PhaseAlloyRipper Manual? 0 Play Time 06:22:10 Cumulative 488.1 hours Start 2020.01.23 @ 21:28:57 End 2020.03.11 @ 00:29:44 Sessions 10 Manual Loads 0 Difficulty Rogue Special Mode Winter2019/RPGLIKE Game No. 141 Rogue 141 Adventurer 0 Explorer 0 Win Type - Total 2 Types 1/0/1/0/0/0/0 Lore% 72 Gallery% 79 Achievement% 57 Wizard Run 0 Options --------- ASCII 0 Keyboard 0 Movement Arrows Keybinds 0 Fullscreen 1 Font 12/Smallcaps Map View 83x54 Tactical HUD 1 Map Filters NONE Filters NONE Steam 1 RUN: 83507c87-36d4-4169-934b-b9eef9720d23